[Event "*** Titled Tuesday Blitz"]
[Site "Chess.com"]
[Date "2020.04.28"]
[Round "6"]
[White "pooh2012"]
[Black "karwowskikacper"]
[Result "0-1"]
[WhiteElo "2492"]
[BlackElo "2351"]
[TimeControl "180+1"]
[EndTime "11:07:54 PDT"]
[Termination "karwowskikacper won by resignation"]

1. Nf3 {[%clk 0:03:00.9]} 1... Nf6 {[%clk 0:02:56.5]} 2. g3 {[%clk 0:03:01.8]}
2... g6 {[%clk 0:02:57.4]} 3. b3 {[%clk 0:03:01.8]} 3... Bg7 {[%clk 0:02:58.3]}
4. Bb2 {[%clk 0:03:02.4]} 4... O-O {[%clk 0:02:59.1]} 5. Bg2 {[%clk 0:03:03.1]}
5... c6 {[%clk 0:02:55.5]} 6. O-O {[%clk 0:03:02.1]} 6... d5 {[%clk 0:02:56.4]}
7. c4 {[%clk 0:03:01.6]} 7... dxc4 {[%clk 0:02:45.2]} 8. bxc4 {[%clk 0:03:02.5]}
8... Be6 {[%clk 0:02:44.6]} 9. d3 {[%clk 0:02:59]} 9... Qc8 {[%clk 0:02:44.7]}
10. Nbd2 {[%clk 0:02:55.3]} 10... Rd8 {[%clk 0:02:40.3]} 11. Rb1 {[%clk
0:02:53.2]} 11... Na6 {[%clk 0:02:39]} 12. Ng5 {[%clk 0:02:48.5]} 12... Nc7
{[%clk 0:02:37.9]} 13. Nxe6 {[%clk 0:02:43.5]} 13... Nxe6 {[%clk 0:02:38.8]} 14.
Nf3 {[%clk 0:02:38.9]} 14... Rb8 {[%clk 0:02:03.3]} 15. Qa4 {[%clk 0:02:31.6]}
15... a6 {[%clk 0:01:56.7]} 16. Be5 {[%clk 0:02:28.4]} 16... Ra8 {[%clk
0:01:56.4]} 17. Qa3 {[%clk 0:02:26.2]} 17... Qd7 {[%clk 0:01:53.9]} 18. Ba1
{[%clk 0:02:16.3]} 18... b5 {[%clk 0:01:52.6]} 19. Ne5 {[%clk 0:02:15.2]} 19...
Qd6 {[%clk 0:01:53]} 20. Qxd6 {[%clk 0:02:07.7]} 20... Rxd6 {[%clk 0:01:53.9]}
21. Nxc6 {[%clk 0:02:07.4]} 21... Re8 {[%clk 0:01:51.3]} 22. cxb5 {[%clk
0:02:02.8]} 22... axb5 {[%clk 0:01:52.2]} 23. Rxb5 {[%clk 0:02:00.6]} 23... Nd7
{[%clk 0:01:53.1]} 24. Bxg7 {[%clk 0:01:56.1]} 24... Kxg7 {[%clk 0:01:54]} 25.
a4 {[%clk 0:01:55.6]} 25... Kf6 {[%clk 0:01:52.8]} 26. a5 {[%clk 0:01:54.6]}
26... Rc8 {[%clk 0:01:53.1]} 27. Nb4 {[%clk 0:01:38]} 27... Nd4 {[%clk
0:01:51.4]} 28. Nd5+ {[%clk 0:01:30.4]} 28... Kg7 {[%clk 0:01:49.4]} 29. Nxe7
{[%clk 0:01:20.2]} 29... Re8 {[%clk 0:01:49.7]} 30. Rb2 {[%clk 0:01:00.8]} 30...
Rxe7 {[%clk 0:01:49.5]} 31. e3 {[%clk 0:01:01.3]} 31... Ne6 {[%clk 0:01:47.9]}
32. d4 {[%clk 0:00:59.5]} 32... Nf6 {[%clk 0:01:45.4]} 33. Ra1 {[%clk 0:00:56]}
33... Ra7 {[%clk 0:01:44.5]} 34. Rb7 {[%clk 0:00:54.6]} 34... Rd7 {[%clk
0:01:42.5]} 35. Rxa7 {[%clk 0:00:49.5]} 35... Rxa7 {[%clk 0:01:42.2]} 36. a6
{[%clk 0:00:49.2]} 36... Nc7 {[%clk 0:01:42.1]} 37. Bf1 {[%clk 0:00:44.3]} 37...
Nfe8 {[%clk 0:01:41.5]} 38. e4 {[%clk 0:00:38.2]} 38... Kf6 {[%clk 0:01:40.9]}
39. e5+ {[%clk 0:00:37.8]} 39... Ke7 {[%clk 0:01:40.3]} 40. f4 {[%clk 0:00:34]}
40... Na8 {[%clk 0:01:38.5]} 41. Kf2 {[%clk 0:00:33.6]} 41... Nec7 {[%clk
0:01:38.5]} 42. Ke3 {[%clk 0:00:33.4]} 42... Nb6 {[%clk 0:01:38.6]} 43. Ke4
{[%clk 0:00:30.6]} 43... Nbd5 {[%clk 0:01:36.1]} 44. Rc1 {[%clk 0:00:25.2]}
44... Nb4 {[%clk 0:01:25.5]} 45. Rb1 {[%clk 0:00:24.7]} 45... Nbxa6 {[%clk
0:01:17.2]} 46. d5 {[%clk 0:00:23.2]} 46... Nc5+ {[%clk 0:01:08.7]} 47. Kd4
{[%clk 0:00:23.3]} 47... Nb7 {[%clk 0:01:03.4]} 48. d6+ {[%clk 0:00:20.8]} 48...
Nxd6 {[%clk 0:01:03.6]} 49. exd6+ {[%clk 0:00:21.7]} 49... Kxd6 {[%clk
0:01:04.5]} 50. Rb6+ {[%clk 0:00:21.7]} 50... Ke7 {[%clk 0:01:04.6]} 51. Bc4
{[%clk 0:00:21.4]} 51... Ne8 {[%clk 0:00:58.5]} 52. Ke5 {[%clk 0:00:15.1]} 52...
Ra5+ {[%clk 0:00:55.9]} 53. Kd4 {[%clk 0:00:14.6]} 53... Nd6 {[%clk 0:00:55.9]}
54. Bd3 {[%clk 0:00:10.6]} 54... Ra4+ {[%clk 0:00:55.6]} 55. Ke3 {[%clk
0:00:11]} 55... Ra7 {[%clk 0:00:54.8]} 56. g4 {[%clk 0:00:10.7]} 56... h5 {[%clk
0:00:54.1]} 57. gxh5 {[%clk 0:00:10.5]} 57... gxh5 {[%clk 0:00:55]} 58. Rb1
{[%clk 0:00:10.4]} 58... Kf6 {[%clk 0:00:53.3]} 59. Rg1 {[%clk 0:00:10.2]} 59...
Ra5 {[%clk 0:00:52.5]} 60. h3 {[%clk 0:00:08.3]} 60... Nf5+ {[%clk 0:00:51.7]}
61. Kf3 {[%clk 0:00:08.7]} 61... Nd4+ {[%clk 0:00:51.2]} 62. Ke3 {[%clk
0:00:09.1]} 62... Nf5+ {[%clk 0:00:50.6]} 63. Kf3 {[%clk 0:00:09.5]} 63... Ra3
{[%clk 0:00:49.8]} 64. Ke4 {[%clk 0:00:08]} 64... Nd6+ {[%clk 0:00:49.4]} 65.
Kd4 {[%clk 0:00:07.9]} 65... Nf5+ {[%clk 0:00:49.3]} 66. Ke4 {[%clk 0:00:07.9]}
66... Ra4+ {[%clk 0:00:47.5]} 67. Kf3 {[%clk 0:00:07.7]} 67... Ra3 {[%clk
0:00:47.9]} 68. Ke2 {[%clk 0:00:06.6]} 68... Nd4+ {[%clk 0:00:43.9]} 69. Ke3
{[%clk 0:00:06.9]} 69... Nf5+ {[%clk 0:00:43.1]} 70. Kd2 {[%clk 0:00:07]} 70...
Nh4 {[%clk 0:00:41.9]} 71. Rg3 {[%clk 0:00:04.7]} 71... Ra2+ {[%clk 0:00:41.3]}
72. Ke3 {[%clk 0:00:03.3]} 72... Rh2 {[%clk 0:00:41]} 73. Be2 {[%clk 0:00:02.1]}
73... Nf5+ {[%clk 0:00:40.7]} 0-1

[Event "*** Titled Tuesday Blitz"]
[Site "Chess.com"]
[Date "2020.04.28"]
[Round "6"]
[White "Fandorine"]
[Black "Rumpel-VK"]
[Result "1-0"]
[WhiteElo "2879"]
[BlackElo "2613"]
[TimeControl "180+1"]
[EndTime "11:07:56 PDT"]
[Termination "Fandorine won on time"]

1. e4 {[%clk 0:03:00.9]} 1... c5 {[%clk 0:02:59.2]} 2. Nf3 {[%clk 0:03:00.8]}
2... Nc6 {[%clk 0:02:59.6]} 3. Bb5 {[%clk 0:03:00.5]} 3... d6 {[%clk 0:02:59.8]}
4. d4 {[%clk 0:02:59.3]} 4... cxd4 {[%clk 0:02:59]} 5. Qxd4 {[%clk 0:03:00.2]}
5... Bd7 {[%clk 0:02:59.1]} 6. Qd3 {[%clk 0:03:00.1]} 6... g6 {[%clk 0:02:56.6]}
7. O-O {[%clk 0:02:59]} 7... Bg7 {[%clk 0:02:56.8]} 8. c4 {[%clk 0:02:59.4]}
8... Nf6 {[%clk 0:02:55.9]} 9. Nc3 {[%clk 0:02:59.7]} 9... O-O {[%clk
0:02:55.6]} 10. h3 {[%clk 0:02:59.9]} 10... Rc8 {[%clk 0:02:55.5]} 11. Be3
{[%clk 0:02:59.4]} 11... a6 {[%clk 0:02:55.2]} 12. Bxc6 {[%clk 0:02:59.6]} 12...
bxc6 {[%clk 0:02:54.6]} 13. Rfd1 {[%clk 0:02:51.8]} 13... Rb8 {[%clk 0:02:53.3]}
14. Rab1 {[%clk 0:02:40.3]} 14... Qa5 {[%clk 0:02:36.5]} 15. b3 {[%clk
0:02:26.5]} 15... Ng4 {[%clk 0:02:28.8]} 16. Bd4 {[%clk 0:01:59.9]} 16... Ne5
{[%clk 0:02:24]} 17. Nxe5 {[%clk 0:01:55.2]} 17... Bxe5 {[%clk 0:02:22.9]} 18.
Bxe5 {[%clk 0:01:42.8]} 18... Qxe5 {[%clk 0:02:22.2]} 19. Rbc1 {[%clk
0:01:42.6]} 19... Be6 {[%clk 0:02:16.4]} 20. Ne2 {[%clk 0:01:32.8]} 20... c5
{[%clk 0:02:12.2]} 21. Nc3 {[%clk 0:01:30.3]} 21... Rfe8 {[%clk 0:02:02.1]} 22.
Re1 {[%clk 0:01:30.4]} 22... Qg5 {[%clk 0:01:57.7]} 23. Rcd1 {[%clk 0:01:25.3]}
23... h5 {[%clk 0:01:52.1]} 24. Nd5 {[%clk 0:01:20.5]} 24... Rbd8 {[%clk
0:01:45.4]} 25. Nc7 {[%clk 0:01:03.8]} 25... Rf8 {[%clk 0:01:45]} 26. Nxe6
{[%clk 0:00:57.8]} 26... fxe6 {[%clk 0:01:44.7]} 27. e5 {[%clk 0:00:58.1]} 27...
dxe5 {[%clk 0:00:56.2]} 28. Qxd8 {[%clk 0:00:54.7]} 28... Rxd8 {[%clk
0:00:57.1]} 29. Rxd8+ {[%clk 0:00:55]} 29... Kf7 {[%clk 0:00:57.7]} 30. Rd3
{[%clk 0:00:55]} 30... Kf6 {[%clk 0:00:52.9]} 31. Rf3+ {[%clk 0:00:53.3]} 31...
Kg7 {[%clk 0:00:53.1]} 32. Rfe3 {[%clk 0:00:53.7]} 32... Kf6 {[%clk 0:00:51.8]}
33. R1e2 {[%clk 0:00:53.1]} 33... h4 {[%clk 0:00:49.8]} 34. f3 {[%clk
0:00:50.9]} 34... Qf4 {[%clk 0:00:43.9]} 35. Kf1 {[%clk 0:00:46.1]} 35... Qd4
{[%clk 0:00:42.1]} 36. Re4 {[%clk 0:00:41.2]} 36... Qa1+ {[%clk 0:00:18.7]} 37.
Kf2 {[%clk 0:00:41.3]} 37... g5 {[%clk 0:00:18.9]} 38. Rxe5 {[%clk 0:00:19.9]}
38... Qxe5 {[%clk 0:00:13.6]} 39. Rxe5 {[%clk 0:00:20]} 39... Kxe5 {[%clk
0:00:13.8]} 40. Ke3 {[%clk 0:00:19.2]} 40... a5 {[%clk 0:00:13.7]} 41. a3 {[%clk
0:00:19.2]} 41... Kf5 {[%clk 0:00:13]} 42. Kd3 {[%clk 0:00:17.2]} 42... e5
{[%clk 0:00:07.5]} 43. Kc3 {[%clk 0:00:13.5]} 43... e4 {[%clk 0:00:06.8]} 44.
fxe4+ {[%clk 0:00:13.8]} 44... Kxe4 {[%clk 0:00:06.6]} 45. b4 {[%clk 0:00:14.7]}
45... cxb4+ {[%clk 0:00:01.8]} 46. axb4 {[%clk 0:00:15.6]} 46... axb4+ {[%clk
0:00:02.2]} 47. Kxb4 {[%clk 0:00:16.5]} 47... e5 {[%clk 0:00:02.4]} 48. c5
{[%clk 0:00:15.8]} 48... Kd5 {[%clk 0:00:02.6]} 49. Kb5 {[%clk 0:00:15.4]} 49...
e4 {[%clk 0:00:02.3]} 50. c6 {[%clk 0:00:15.9]} 50... Kd6 {[%clk 0:00:02]} 51.
Kb6 {[%clk 0:00:11.3]} 51... e3 {[%clk 0:00:02.1]} 52. c7 {[%clk 0:00:11.6]}
52... e2 {[%clk 0:00:02.4]} 53. c8=Q {[%clk 0:00:11.6]} 53... e1=Q {[%clk
0:00:02.6]} 54. Qd8+ {[%clk 0:00:12]} 1-0

[Event "*** Titled Tuesday Blitz"]
[Site "Chess.com"]
[Date "2020.04.28"]
[Round "6"]
[White "gvanna"]
[Black "svilson23"]
[Result "1-0"]
[WhiteElo "2468"]
[BlackElo "2231"]
[TimeControl "180+1"]
[EndTime "11:07:56 PDT"]
[Termination "gvanna won on time"]

1. e4 {[%clk 0:03:00.9]} 1... c5 {[%clk 0:02:59.2]} 2. Nf3 {[%clk 0:03:01.1]}
2... Nc6 {[%clk 0:02:59.5]} 3. Nc3 {[%clk 0:03:01]} 3... g6 {[%clk 0:02:55.5]}
4. d4 {[%clk 0:03:00.3]} 4... cxd4 {[%clk 0:02:56.1]} 5. Nxd4 {[%clk 0:03:01]}
5... Bg7 {[%clk 0:02:56.5]} 6. Be3 {[%clk 0:03:01.2]} 6... Nf6 {[%clk 0:02:57]}
7. Bc4 {[%clk 0:03:00.9]} 7... O-O {[%clk 0:02:57.2]} 8. Bb3 {[%clk 0:03:00.9]}
8... d6 {[%clk 0:02:57.2]} 9. f3 {[%clk 0:03:00.7]} 9... a6 {[%clk 0:02:52.5]}
10. Qd2 {[%clk 0:03:00.4]} 10... Bd7 {[%clk 0:02:50]} 11. O-O-O {[%clk
0:02:59.9]} 11... Nxd4 {[%clk 0:02:43.8]} 12. Bxd4 {[%clk 0:02:59.6]} 12... b5
{[%clk 0:02:43.9]} 13. h4 {[%clk 0:02:58.5]} 13... b4 {[%clk 0:02:37.2]} 14. Nd5
{[%clk 0:02:57.7]} 14... Nxd5 {[%clk 0:02:36.8]} 15. Bxg7 {[%clk 0:02:57.5]}
15... Kxg7 {[%clk 0:02:34.3]} 16. Bxd5 {[%clk 0:02:57.6]} 16... Rb8 {[%clk
0:02:32.2]} 17. h5 {[%clk 0:02:56.9]} 17... Rh8 {[%clk 0:02:26.6]} 18. Qd4+
{[%clk 0:02:43.6]} 18... f6 {[%clk 0:02:20.7]} 19. h6+ {[%clk 0:02:42.3]} 19...
Kf8 {[%clk 0:02:19.4]} 20. f4 {[%clk 0:02:38.4]} 20... Qc7 {[%clk 0:02:12.6]}
21. Rhe1 {[%clk 0:02:33.4]} 21... e6 {[%clk 0:02:12.7]} 22. Bb3 {[%clk
0:02:28.6]} 22... Ke7 {[%clk 0:02:12.9]} 23. g4 {[%clk 0:02:22.7]} 23... Qc5
{[%clk 0:01:52.7]} 24. Qxc5 {[%clk 0:01:50.6]} 24... dxc5 {[%clk 0:01:52.1]} 25.
e5 {[%clk 0:01:51.1]} 25... f5 {[%clk 0:01:48.5]} 26. g5 {[%clk 0:01:48.1]}
26... Bb5 {[%clk 0:01:41.5]} 27. c4 {[%clk 0:01:37.1]} 27... bxc3 {[%clk
0:01:41]} 28. bxc3 {[%clk 0:01:37.5]} 28... Rhd8 {[%clk 0:01:22]} 29. Rd6 {[%clk
0:01:18.8]} 29... c4 {[%clk 0:01:17.5]} 30. Rxd8 {[%clk 0:01:08.5]} 30... Rxd8
{[%clk 0:01:11.8]} 31. Bc2 {[%clk 0:01:08.5]} 31... Rd5 {[%clk 0:01:03.7]} 32.
Re2 {[%clk 0:01:03.9]} 32... Kd7 {[%clk 0:00:59.8]} 33. Kb2 {[%clk 0:01:03.5]}
33... Kc6 {[%clk 0:00:59.6]} 34. a4 {[%clk 0:01:00.4]} 34... Kc5 {[%clk
0:00:55]} 35. axb5 {[%clk 0:01:00.5]} 35... axb5 {[%clk 0:00:55.5]} 36. Kc1
{[%clk 0:00:54.4]} 36... b4 {[%clk 0:00:53.1]} 37. cxb4+ {[%clk 0:00:54]} 37...
Kxb4 {[%clk 0:00:53.6]} 38. Re3 {[%clk 0:00:48.5]} 38... Rd4 {[%clk 0:00:48.5]}
39. Rf3 {[%clk 0:00:48.4]} 39... Kc5 {[%clk 0:00:44.8]} 40. Kb2 {[%clk
0:00:47.1]} 40... Rd2 {[%clk 0:00:44.7]} 41. Kc3 {[%clk 0:00:46.2]} 41... Re2
{[%clk 0:00:38]} 42. Rf1 {[%clk 0:00:39.9]} 42... Re3+ {[%clk 0:00:37.4]} 43.
Kd2 {[%clk 0:00:40.3]} 43... Ra3 {[%clk 0:00:33.1]} 44. Rb1 {[%clk 0:00:34.7]}
44... Rf3 {[%clk 0:00:31.6]} 45. Rb7 {[%clk 0:00:34.3]} 45... Rxf4 {[%clk
0:00:30.5]} 46. Rxh7 {[%clk 0:00:34.4]} 46... Kd4 {[%clk 0:00:28.3]} 47. Rd7+
{[%clk 0:00:30.8]} 47... Kxe5 {[%clk 0:00:28.5]} 48. h7 {[%clk 0:00:31.3]} 48...
Rf2+ {[%clk 0:00:28]} 49. Kc3 {[%clk 0:00:31.3]} 49... Rh2 {[%clk 0:00:27.6]}
50. Ba4 {[%clk 0:00:26.9]} 50... Kf4 {[%clk 0:00:22.4]} 51. Kxc4 {[%clk
0:00:26.5]} 51... Kxg5 {[%clk 0:00:21.5]} 52. Kd4 {[%clk 0:00:26.9]} 52... Kf6
{[%clk 0:00:20.6]} 53. Bb3 {[%clk 0:00:24.8]} 53... g5 {[%clk 0:00:20]} 54. Ke3
{[%clk 0:00:21.6]} 54... Kg6 {[%clk 0:00:18.8]} 55. Bxe6 {[%clk 0:00:19.7]}
55... f4+ {[%clk 0:00:18.6]} 56. Kf3 {[%clk 0:00:18.3]} 56... Kf6 {[%clk
0:00:02.1]} 57. Bg4 {[%clk 0:00:17.8]} 1-0

[Event "*** Titled Tuesday Blitz"]
[Site "Chess.com"]
[Date "2020.04.28"]
[Round "6"]
[White "MariaFominykh"]
[Black "MarcoRiehle"]
[Result "1-0"]
[WhiteElo "2418"]
[BlackElo "2555"]
[TimeControl "180+1"]
[EndTime "11:07:56 PDT"]
[Termination "MariaFominykh won by resignation"]

1. d4 {[%clk 0:03:00.9]} 1... d5 {[%clk 0:02:59.9]} 2. c4 {[%clk 0:03:00.5]}
2... e6 {[%clk 0:02:59]} 3. Nf3 {[%clk 0:02:59.9]} 3... Nf6 {[%clk 0:02:58.6]}
4. Nc3 {[%clk 0:02:59.9]} 4... dxc4 {[%clk 0:02:58.4]} 5. e3 {[%clk 0:02:56.7]}
5... a6 {[%clk 0:02:52.6]} 6. a4 {[%clk 0:02:53.2]} 6... c5 {[%clk 0:02:50.2]}
7. Bxc4 {[%clk 0:02:52.5]} 7... Nc6 {[%clk 0:02:50.6]} 8. O-O {[%clk 0:02:51.5]}
8... cxd4 {[%clk 0:02:50.4]} 9. exd4 {[%clk 0:02:50.8]} 9... Nb4 {[%clk
0:02:48.4]} 10. Bg5 {[%clk 0:02:45.3]} 10... Be7 {[%clk 0:02:45.3]} 11. h3
{[%clk 0:02:44.2]} 11... O-O {[%clk 0:02:44.5]} 12. Bb3 {[%clk 0:02:42.2]} 12...
h6 {[%clk 0:02:42]} 13. Bd2 {[%clk 0:02:24.4]} 13... Bd7 {[%clk 0:02:40.5]} 14.
Rc1 {[%clk 0:02:21.1]} 14... Rc8 {[%clk 0:02:39.8]} 15. Qe2 {[%clk 0:02:20.5]}
15... Bc6 {[%clk 0:02:37.3]} 16. Ne5 {[%clk 0:02:19.8]} 16... Qxd4 {[%clk
0:02:26.9]} 17. Nxc6 {[%clk 0:02:18.3]} 17... Nxc6 {[%clk 0:02:27.8]} 18. Rfd1
{[%clk 0:02:13.3]} 18... Qh4 {[%clk 0:02:18.5]} 19. Be3 {[%clk 0:02:11.2]} 19...
Rfd8 {[%clk 0:02:17.2]} 20. Bb6 {[%clk 0:02:05.2]} 20... Nd4 {[%clk 0:02:13.4]}
21. Bxd4 {[%clk 0:01:51.9]} 21... Rxd4 {[%clk 0:02:14.3]} 22. Nd5 {[%clk
0:01:37.8]} 22... Rxd1+ {[%clk 0:02:08.8]} 23. Qxd1 {[%clk 0:01:35]} 23... Re8
{[%clk 0:02:01.9]} 24. Nxe7+ {[%clk 0:01:29.1]} 24... Rxe7 {[%clk 0:02:01.8]}
25. Rc8+ {[%clk 0:01:24.9]} 25... Kh7 {[%clk 0:01:49.3]} 26. Bc2+ {[%clk
0:01:23.4]} 26... g6 {[%clk 0:01:40.2]} 27. Qd6 {[%clk 0:01:08.8]} 27... Ne8
{[%clk 0:01:08.6]} 28. Qd8 {[%clk 0:00:57.3]} 28... Qf6 {[%clk 0:00:58.3]} 29.
Qb6 {[%clk 0:00:53]} 29... Kg7 {[%clk 0:00:52.2]} 30. Be4 {[%clk 0:00:50.9]}
30... h5 {[%clk 0:00:38.1]} 31. Bxb7 {[%clk 0:00:50.5]} 31... Qe5 {[%clk
0:00:22.5]} 32. Bxa6 {[%clk 0:00:44.3]} 32... Nd6 {[%clk 0:00:17.9]} 33. Rc1
{[%clk 0:00:37.8]} 33... Ne4 {[%clk 0:00:13.7]} 34. Qe3 {[%clk 0:00:32.9]} 34...
Qf5 {[%clk 0:00:06.2]} 35. Bd3 {[%clk 0:00:31.6]} 35... Rd7 {[%clk 0:00:03.3]}
36. Bxe4 {[%clk 0:00:31.3]} 36... Qe5 {[%clk 0:00:02.5]} 37. Qc3 {[%clk
0:00:30.8]} 37... Qxc3 {[%clk 0:00:02.4]} 38. Rxc3 {[%clk 0:00:30.6]} 38... Ra7
{[%clk 0:00:01.6]} 39. b3 {[%clk 0:00:29.7]} 39... f5 {[%clk 0:00:02.5]} 40. Bd3
{[%clk 0:00:29.1]} 40... e5 {[%clk 0:00:02.6]} 41. Rc5 {[%clk 0:00:28.5]} 41...
e4 {[%clk 0:00:03]} 42. Bc4 {[%clk 0:00:28.7]} 42... Kf6 {[%clk 0:00:02.9]} 43.
a5 {[%clk 0:00:29.1]} 43... f4 {[%clk 0:00:03.2]} 44. a6 {[%clk 0:00:29.5]}
44... g5 {[%clk 0:00:03.4]} 45. Rc6+ {[%clk 0:00:28.3]} 45... Ke5 {[%clk
0:00:01.8]} 46. Rb6 {[%clk 0:00:27.4]} 46... Rd7 {[%clk 0:00:01.9]} 47. Rb7
{[%clk 0:00:27.1]} 47... Rd1+ {[%clk 0:00:01.9]} 48. Kh2 {[%clk 0:00:26.7]}
48... Ra1 {[%clk 0:00:02.8]} 49. a7 {[%clk 0:00:26.1]} 49... g4 {[%clk
0:00:03.6]} 50. hxg4 {[%clk 0:00:23.1]} 50... hxg4 {[%clk 0:00:03.5]} 51. Rb5+
{[%clk 0:00:23.7]} 51... Kd4 {[%clk 0:00:03.4]} 52. Rd5+ {[%clk 0:00:23.4]}
52... Kc3 {[%clk 0:00:03.9]} 53. Rd7 {[%clk 0:00:22.6]} 53... e3 {[%clk
0:00:04.2]} 54. fxe3 {[%clk 0:00:22.1]} 54... g3+ {[%clk 0:00:04.8]} 55. Kh3
{[%clk 0:00:21.9]} 55... Rh1+ {[%clk 0:00:05.4]} 56. Kg4 {[%clk 0:00:21.9]}
56... f3 {[%clk 0:00:05.7]} 57. Kxf3 {[%clk 0:00:21.9]} 57... Rh8 {[%clk
0:00:04.6]} 58. Kxg3 {[%clk 0:00:21.7]} 1-0

[Event "*** Titled Tuesday Blitz"]
[Site "Chess.com"]
[Date "2020.04.28"]
[Round "6"]
[White "Kildepiotr"]
[Black "DryCounty"]
[Result "0-1"]
[WhiteElo "2573"]
[BlackElo "2763"]
[TimeControl "180+1"]
[EndTime "11:07:57 PDT"]
[Termination "DryCounty won by checkmate"]

1. Nf3 {[%clk 0:03:00.9]} 1... Nf6 {[%clk 0:02:59.3]} 2. g3 {[%clk 0:03:01.2]}
2... g6 {[%clk 0:02:59.8]} 3. Bg2 {[%clk 0:03:01.7]} 3... Bg7 {[%clk 0:03:00.3]}
4. O-O {[%clk 0:03:02.5]} 4... O-O {[%clk 0:03:00.7]} 5. d4 {[%clk 0:03:03.1]}
5... d6 {[%clk 0:03:01.1]} 6. Nbd2 {[%clk 0:03:03.1]} 6... Nc6 {[%clk
0:02:57.2]} 7. e4 {[%clk 0:03:03.1]} 7... e5 {[%clk 0:02:56.4]} 8. dxe5 {[%clk
0:03:04]} 8... dxe5 {[%clk 0:02:55.5]} 9. c3 {[%clk 0:03:03.9]} 9... Qe7 {[%clk
0:02:51.9]} 10. b4 {[%clk 0:03:03.2]} 10... a5 {[%clk 0:02:39.8]} 11. b5 {[%clk
0:03:03]} 11... Nb8 {[%clk 0:02:39.9]} 12. a4 {[%clk 0:03:02.6]} 12... Rd8
{[%clk 0:02:35.7]} 13. Ba3 {[%clk 0:03:01.9]} 13... Qe8 {[%clk 0:02:34.5]} 14.
Qc2 {[%clk 0:02:58.4]} 14... Bf8 {[%clk 0:02:27.3]} 15. Bxf8 {[%clk 0:02:54.7]}
15... Kxf8 {[%clk 0:02:26.7]} 16. Nc4 {[%clk 0:02:54.6]} 16... Nbd7 {[%clk
0:02:17.8]} 17. Rad1 {[%clk 0:02:51.1]} 17... Kg7 {[%clk 0:02:15.8]} 18. Nfxe5
{[%clk 0:02:45.7]} 18... Nxe5 {[%clk 0:02:13]} 19. Rxd8 {[%clk 0:02:45.5]} 19...
Qxd8 {[%clk 0:02:13.3]} 20. Nxe5 {[%clk 0:02:45.7]} 20... Qe7 {[%clk 0:02:08.6]}
21. Nd3 {[%clk 0:02:26.5]} 21... Be6 {[%clk 0:02:05]} 22. Nf4 {[%clk 0:02:22.3]}
22... Bc4 {[%clk 0:01:59.7]} 23. Re1 {[%clk 0:02:21.6]} 23... Qe5 {[%clk
0:01:56.6]} 24. Qd2 {[%clk 0:02:19.3]} 24... Re8 {[%clk 0:01:47.9]} 25. Qd4
{[%clk 0:02:17.3]} 25... Bb3 {[%clk 0:01:33.2]} 26. Qxe5 {[%clk 0:02:17.1]}
26... Rxe5 {[%clk 0:01:32.6]} 27. Nd3 {[%clk 0:02:17.5]} 27... Re7 {[%clk
0:01:12.5]} 28. Nc5 {[%clk 0:02:16.7]} 28... Bc2 {[%clk 0:01:03.2]} 29. e5
{[%clk 0:02:15.8]} 29... Nd7 {[%clk 0:01:00.5]} 30. Nxd7 {[%clk 0:01:32.8]}
30... Rxd7 {[%clk 0:01:01.4]} 31. Bxb7 {[%clk 0:01:32.4]} 31... Bxa4 {[%clk
0:01:00.1]} 32. Bc6 {[%clk 0:01:21]} 32... Rd1 {[%clk 0:00:58.4]} 33. Kf1 {[%clk
0:01:12.9]} 33... Rd2 {[%clk 0:00:44.4]} 34. e6 {[%clk 0:01:07.1]} 34... fxe6
{[%clk 0:00:43]} 35. Rxe6 {[%clk 0:01:06.8]} 35... Kf7 {[%clk 0:00:39.4]} 36.
Re8 {[%clk 0:01:00.3]} 36... Rb2 {[%clk 0:00:29.8]} 37. Rb8 {[%clk 0:00:49.4]}
37... Ke7 {[%clk 0:00:26.7]} 38. c4 {[%clk 0:00:45.3]} 38... Kd6 {[%clk
0:00:26.6]} 39. Bd5 {[%clk 0:00:41.2]} 39... Bxb5 {[%clk 0:00:22.1]} 40. Rd8+
{[%clk 0:00:31.2]} 40... Kc5 {[%clk 0:00:21.2]} 41. cxb5 {[%clk 0:00:30]} 41...
Rd2 {[%clk 0:00:20.1]} 42. Rc8 {[%clk 0:00:24.6]} 42... Rxd5 {[%clk 0:00:18.6]}
43. Rxc7+ {[%clk 0:00:24.8]} 43... Kxb5 {[%clk 0:00:18.9]} 44. Rxh7 {[%clk
0:00:24.6]} 44... a4 {[%clk 0:00:19.2]} 45. Ra7 {[%clk 0:00:24.1]} 45... Kb4
{[%clk 0:00:19.5]} 46. h4 {[%clk 0:00:23.6]} 46... Ra5 {[%clk 0:00:19.4]} 47.
Rb7+ {[%clk 0:00:23.2]} 47... Kc3 {[%clk 0:00:18.4]} 48. Rb1 {[%clk 0:00:22.1]}
48... a3 {[%clk 0:00:18.6]} 49. Kg2 {[%clk 0:00:19.4]} 49... a2 {[%clk
0:00:18.6]} 50. Rf1 {[%clk 0:00:18]} 50... a1=Q {[%clk 0:00:17.3]} 51. Rxa1
{[%clk 0:00:17.3]} 51... Rxa1 {[%clk 0:00:18.2]} 52. Kf3 {[%clk 0:00:15.7]}
52... Kd4 {[%clk 0:00:18.2]} 53. Kf4 {[%clk 0:00:15.5]} 53... Ra5 {[%clk
0:00:14]} 54. g4 {[%clk 0:00:14.5]} 54... Kd5 {[%clk 0:00:11.3]} 55. Kg5 {[%clk
0:00:13.9]} 55... Ke4+ {[%clk 0:00:11.6]} 56. Kxg6 {[%clk 0:00:13.8]} 56... Kf4
{[%clk 0:00:12.1]} 57. g5 {[%clk 0:00:10.7]} 57... Ra6+ {[%clk 0:00:10.9]} 58.
Kf7 {[%clk 0:00:07.6]} 58... Kf5 {[%clk 0:00:09.6]} 59. f4 {[%clk 0:00:07.2]}
59... Ra7+ {[%clk 0:00:09.4]} 60. Kf8 {[%clk 0:00:06]} 60... Kg6 {[%clk
0:00:09.5]} 61. Kg8 {[%clk 0:00:05.7]} 61... Ra8# {[%clk 0:00:09.4]} 0-1